[Event "*** SCC Grand Prix: Titled Tuesday Blitz"]
[Site "Chess.com"]
[Date "2020.07.14"]
[Round "6"]
[White "Herracek"]
[Black "marianokar"]
[Result "0-1"]
[WhiteElo "2558"]
[BlackElo "2431"]
[TimeControl "180+1"]
[EndTime "11:07:21 PDT"]
[Termination "marianokar won by resignation"]

1. c4 {[%clk 0:03:00.9]} 1... Nf6 {[%clk 0:02:57.9]} 2. Nc3 {[%clk 0:03:00.3]}
2... e5 {[%clk 0:02:53.9]} 3. g3 {[%clk 0:02:58.8]} 3... Bb4 {[%clk 0:02:54.1]}
4. Bg2 {[%clk 0:02:59.2]} 4... O-O {[%clk 0:02:53.3]} 5. Nf3 {[%clk 0:02:58.8]}
5... Nc6 {[%clk 0:02:53]} 6. Nd5 {[%clk 0:02:58.9]} 6... a5 {[%clk 0:02:43.5]}
7. O-O {[%clk 0:02:57.5]} 7... Re8 {[%clk 0:02:41.1]} 8. e3 {[%clk 0:02:57.4]}
8... e4 {[%clk 0:02:10.7]} 9. Nh4 {[%clk 0:02:56.9]} 9... d6 {[%clk 0:01:57]}
10. a3 {[%clk 0:02:53.3]} 10... Bc5 {[%clk 0:01:54.9]} 11. d4 {[%clk 0:02:53.4]}
11... exd3 {[%clk 0:01:47.2]} 12. Qxd3 {[%clk 0:02:52.6]} 12... Ne5 {[%clk
0:01:44.9]} 13. Qc2 {[%clk 0:02:52.2]} 13... Ng6 {[%clk 0:01:25.5]} 14. Nf5
{[%clk 0:02:48.5]} 14... c6 {[%clk 0:01:12.3]} 15. Nc3 {[%clk 0:02:48.2]} 15...
Ne5 {[%clk 0:00:33.1]} 16. b3 {[%clk 0:02:43.3]} 16... g6 {[%clk 0:00:24.7]} 17.
Nd4 {[%clk 0:02:42]} 17... Bg4 {[%clk 0:00:23.5]} 18. h3 {[%clk 0:02:40.9]}
18... Bxd4 {[%clk 0:00:23.6]} 19. exd4 {[%clk 0:02:37.1]} 19... Bf5 {[%clk
0:00:23.8]} 20. Qd2 {[%clk 0:02:30.5]} 20... Nd3 {[%clk 0:00:23.5]} 21. g4
{[%clk 0:02:30.9]} 21... Nxc1 {[%clk 0:00:20.2]} 22. Raxc1 {[%clk 0:02:31.8]}
22... Bd7 {[%clk 0:00:18.5]} 23. Qf4 {[%clk 0:02:29.8]} 23... Re6 {[%clk
0:00:09.3]} 24. d5 {[%clk 0:02:29]} 24... cxd5 {[%clk 0:00:07.8]} 25. Nxd5
{[%clk 0:02:29.9]} 25... Nxd5 {[%clk 0:00:07.4]} 26. Bxd5 {[%clk 0:02:27.4]}
26... Rf6 {[%clk 0:00:07.8]} 27. Qg3 {[%clk 0:02:24.4]} 27... Rb8 {[%clk
0:00:07.6]} 28. Rcd1 {[%clk 0:02:24.4]} 28... b5 {[%clk 0:00:06.9]} 29. Rfe1
{[%clk 0:02:01.6]} 29... bxc4 {[%clk 0:00:05.1]} 30. Bxc4 {[%clk 0:02:02.5]}
30... Rb6 {[%clk 0:00:03.9]} 31. Rd5 {[%clk 0:01:58.5]} 31... Be6 {[%clk
0:00:02.7]} 32. Rxa5 {[%clk 0:01:56.2]} 32... Bxc4 {[%clk 0:00:03.1]} 33. bxc4
{[%clk 0:01:56.3]} 33... Rb2 {[%clk 0:00:01.9]} 34. Rd5 {[%clk 0:01:39]} 34...
Rfxf2 {[%clk 0:00:02.8]} 35. Qxf2 {[%clk 0:01:24.6]} 35... Rxf2 {[%clk
0:00:03.7]} 36. Kxf2 {[%clk 0:01:25.5]} 36... Qf6+ {[%clk 0:00:04.6]} 37. Kg2
{[%clk 0:01:22.1]} 37... Qc3 {[%clk 0:00:03.4]} 38. Re4 {[%clk 0:01:19.7]} 38...
Qxa3 {[%clk 0:00:03.6]} 39. Rd2 {[%clk 0:01:15.2]} 39... Kg7 {[%clk 0:00:04.5]}
40. Rf2 {[%clk 0:01:14.5]} 40... Qa8 {[%clk 0:00:04.3]} 41. Rf4 {[%clk
0:01:01.4]} 41... f5 {[%clk 0:00:05.2]} 42. gxf5 {[%clk 0:01:01.6]} 42... gxf5
{[%clk 0:00:05.4]} 43. Kf3 {[%clk 0:01:02.5]} 43... fxe4+ {[%clk 0:00:05.4]} 44.
Rxe4 {[%clk 0:01:03.4]} 44... Kf6 {[%clk 0:00:05.3]} 45. Kf4 {[%clk 0:01:00.5]}
45... Qa1 {[%clk 0:00:04.7]} 0-1

[Event "*** SCC Grand Prix: Titled Tuesday Blitz"]
[Site "Chess.com"]
[Date "2020.07.14"]
[Round "6"]
[White "isainz"]
[Black "MFBerna"]
[Result "0-1"]
[WhiteElo "2141"]
[BlackElo "2426"]
[TimeControl "180+1"]
[EndTime "11:07:21 PDT"]
[Termination "MFBerna won on time"]

1. e4 {[%clk 0:03:00.9]} 1... c6 {[%clk 0:02:55.2]} 2. d4 {[%clk 0:02:58.7]}
2... d5 {[%clk 0:02:53.9]} 3. e5 {[%clk 0:02:59]} 3... c5 {[%clk 0:02:51.2]} 4.
dxc5 {[%clk 0:02:58]} 4... e6 {[%clk 0:02:50.5]} 5. a3 {[%clk 0:02:49]} 5...
Bxc5 {[%clk 0:02:49.4]} 6. b4 {[%clk 0:02:46.1]} 6... Bb6 {[%clk 0:02:49]} 7.
Qg4 {[%clk 0:02:41]} 7... Ne7 {[%clk 0:02:45.5]} 8. Qxg7 {[%clk 0:02:21.7]} 8...
Rg8 {[%clk 0:02:44.9]} 9. Qxh7 {[%clk 0:02:22]} 9... Nbc6 {[%clk 0:02:44.8]} 10.
f4 {[%clk 0:02:18]} 10... Qc7 {[%clk 0:02:39.8]} 11. Ne2 {[%clk 0:01:58.8]}
11... Bd7 {[%clk 0:02:37.2]} 12. c4 {[%clk 0:01:45.6]} 12... dxc4 {[%clk
0:02:32.2]} 13. Nd2 {[%clk 0:01:40.9]} 13... Nd4 {[%clk 0:01:54.1]} 14. Nxd4
{[%clk 0:01:30.8]} 14... Bxd4 {[%clk 0:01:55]} 15. Ra2 {[%clk 0:01:31.1]} 15...
b5 {[%clk 0:01:42.5]} 16. Nf3 {[%clk 0:01:26.3]} 16... Bb6 {[%clk 0:01:39.5]}
17. a4 {[%clk 0:01:23.4]} 17... bxa4 {[%clk 0:01:31.7]} 18. Rc2 {[%clk
0:01:20.7]} 18... Bb5 {[%clk 0:01:28.9]} 19. Nd2 {[%clk 0:01:16.6]} 19... Qd7
{[%clk 0:00:54.1]} 20. Ne4 {[%clk 0:01:04.7]} 20... O-O-O {[%clk 0:00:49]} 21.
Nd6+ {[%clk 0:01:03.1]} 21... Kb8 {[%clk 0:00:48.7]} 22. Qxf7 {[%clk 0:00:52.3]}
22... a6 {[%clk 0:00:22.8]} 23. Bxc4 {[%clk 0:00:23.4]} 23... Bxc4 {[%clk
0:00:22.7]} 24. Rxc4 {[%clk 0:00:23.4]} 24... Rxg2 {[%clk 0:00:22.8]} 25. Qh5
{[%clk 0:00:15.5]} 25... Nd5 {[%clk 0:00:18]} 26. Qf3 {[%clk 0:00:14.8]} 26...
Rdg8 {[%clk 0:00:17.3]} 27. f5 {[%clk 0:00:12.5]} 27... Rf2 {[%clk 0:00:11.3]}
28. Qe4 {[%clk 0:00:10.8]} 28... Rgg2 {[%clk 0:00:04.6]} 29. Rc8+ {[%clk
0:00:09.2]} 29... Qxc8 {[%clk 0:00:02.7]} 30. Nxc8 {[%clk 0:00:09.3]} 30... Kxc8
{[%clk 0:00:02.3]} 31. fxe6 {[%clk 0:00:08.6]} 31... Nc3 {[%clk 0:00:01.6]} 32.
Qa8+ {[%clk 0:00:07.1]} 32... Kc7 {[%clk 0:00:01.8]} 33. e7 {[%clk 0:00:05.1]}
33... Re2+ {[%clk 0:00:02.7]} 34. Kf1 {[%clk 0:00:04.1]} 34... Ref2+ {[%clk
0:00:03]} 35. Ke1 {[%clk 0:00:04.3]} 35... Re2+ {[%clk 0:00:03.5]} 36. Kf1
{[%clk 0:00:04.7]} 36... Rgf2+ {[%clk 0:00:04.4]} 37. Kg1 {[%clk 0:00:04.8]}
37... Rf3+ {[%clk 0:00:04.3]} 0-1

[Event "*** SCC Grand Prix: Titled Tuesday Blitz"]
[Site "Chess.com"]
[Date "2020.07.14"]
[Round "6"]
[White "anpospan"]
[Black "Bacyanide"]
[Result "1/2-1/2"]
[WhiteElo "2318"]
[BlackElo "2453"]
[TimeControl "180+1"]
[EndTime "11:07:23 PDT"]
[Termination "Game drawn by repetition"]

1. d4 {[%clk 0:03:00.9]} 1... d5 {[%clk 0:02:53.8]} 2. c4 {[%clk 0:03:00.6]}
2... e6 {[%clk 0:02:51.6]} 3. Nc3 {[%clk 0:02:59.8]} 3... c5 {[%clk 0:02:50.6]}
4. cxd5 {[%clk 0:02:59.6]} 4... exd5 {[%clk 0:02:49.9]} 5. Nf3 {[%clk
0:02:59.6]} 5... Nf6 {[%clk 0:02:49.6]} 6. g3 {[%clk 0:02:59.5]} 6... Nc6 {[%clk
0:02:46.9]} 7. Bg2 {[%clk 0:02:59.3]} 7... cxd4 {[%clk 0:02:47.8]} 8. Nxd4
{[%clk 0:02:58.7]} 8... Bc5 {[%clk 0:02:47.3]} 9. Nxc6 {[%clk 0:02:52.9]} 9...
bxc6 {[%clk 0:02:46]} 10. O-O {[%clk 0:02:52.5]} 10... O-O {[%clk 0:02:46.9]}
11. Bg5 {[%clk 0:02:51.1]} 11... h6 {[%clk 0:02:38.8]} 12. Bxf6 {[%clk 0:02:48]}
12... Qxf6 {[%clk 0:02:39.7]} 13. Rc1 {[%clk 0:02:44.9]} 13... Bb6 {[%clk
0:02:29.6]} 14. e4 {[%clk 0:02:32.9]} 14... dxe4 {[%clk 0:02:19.5]} 15. Nxe4
{[%clk 0:02:21.6]} 15... Qxb2 {[%clk 0:02:20.4]} 16. Rc2 {[%clk 0:01:56.6]}
16... Qa3 {[%clk 0:02:09.3]} 17. Qh5 {[%clk 0:01:38]} 17... Be6 {[%clk
0:02:02.3]} 18. Rxc6 {[%clk 0:01:26.5]} 18... Qxa2 {[%clk 0:01:59]} 19. Nf6+
{[%clk 0:01:07.9]} 19... gxf6 {[%clk 0:01:57.6]} 20. Qxh6 {[%clk 0:01:07.7]}
20... Qe2 {[%clk 0:01:29.6]} 21. Qxf6 {[%clk 0:00:57.5]} 21... Qg4 {[%clk
0:01:29.2]} 22. h3 {[%clk 0:00:42.5]} 22... Qg7 {[%clk 0:01:26.4]} 23. Rxe6
{[%clk 0:00:34]} 23... fxe6 {[%clk 0:01:26.4]} 24. Qxe6+ {[%clk 0:00:33.6]}
24... Kh8 {[%clk 0:01:23]} 25. Bxa8 {[%clk 0:00:19.8]} 25... Rxa8 {[%clk
0:01:15.5]} 26. Kh2 {[%clk 0:00:17.9]} 26... Rf8 {[%clk 0:01:09.9]} 27. f4
{[%clk 0:00:17.3]} 27... Bd4 {[%clk 0:01:07.4]} 28. Rd1 {[%clk 0:00:16.8]} 28...
a5 {[%clk 0:01:05.1]} 29. g4 {[%clk 0:00:15]} 29... Rxf4 {[%clk 0:01:00.5]} 30.
Qe8+ {[%clk 0:00:12.7]} 30... Rf8 {[%clk 0:01:00.4]} 31. Qh5+ {[%clk 0:00:12.6]}
31... Qh7 {[%clk 0:00:45.3]} 32. Qxh7+ {[%clk 0:00:11.9]} 32... Kxh7 {[%clk
0:00:46.2]} 33. Rxd4 {[%clk 0:00:12.2]} 33... Ra8 {[%clk 0:00:44.2]} 34. Ra4
{[%clk 0:00:12]} 34... Kg6 {[%clk 0:00:44.1]} 35. Kg3 {[%clk 0:00:12.1]} 35...
Ra6 {[%clk 0:00:43.9]} 36. h4 {[%clk 0:00:12]} 36... Ra7 {[%clk 0:00:44]} 37.
Kf4 {[%clk 0:00:11.9]} 37... Ra6 {[%clk 0:00:43.9]} 38. h5+ {[%clk 0:00:10.6]}
38... Kh6 {[%clk 0:00:43.3]} 39. Kf5 {[%clk 0:00:10]} 39... Ra8 {[%clk
0:00:42.4]} 40. Kf4 {[%clk 0:00:09.8]} 40... Ra6 {[%clk 0:00:40.9]} 41. Kf5
{[%clk 0:00:09.6]} 41... Ra8 {[%clk 0:00:40.3]} 42. Ra3 {[%clk 0:00:09.3]} 42...
a4 {[%clk 0:00:39.9]} 43. g5+ {[%clk 0:00:09.1]} 43... Kg7 {[%clk 0:00:37.9]}
44. h6+ {[%clk 0:00:09.1]} 44... Kh7 {[%clk 0:00:37.1]} 45. Kf6 {[%clk 0:00:09]}
45... Ra6+ {[%clk 0:00:36.2]} 46. Kf7 {[%clk 0:00:08.8]} 46... Ra7+ {[%clk
0:00:35.6]} 47. Kf6 {[%clk 0:00:09.1]} 47... Ra6+ {[%clk 0:00:35.8]} 48. Kf7
{[%clk 0:00:08.8]} 48... Ra7+ {[%clk 0:00:35.6]} 49. Kf6 {[%clk 0:00:09.1]}
49... Ra6+ {[%clk 0:00:35.6]} 1/2-1/2

[Event "*** SCC Grand Prix: Titled Tuesday Blitz"]
[Site "Chess.com"]
[Date "2020.07.14"]
[Round "6"]
[White "Chuchofrio1"]
[Black "XxPetroffsxX"]
[Result "1-0"]
[WhiteElo "2176"]
[BlackElo "1948"]
[TimeControl "180+1"]
[EndTime "11:07:23 PDT"]
[Termination "Chuchofrio1 won on time"]

1. d4 {[%clk 0:03:00.9]} 1... Nf6 {[%clk 0:02:58.4]} 2. c4 {[%clk 0:03:01.2]}
2... e6 {[%clk 0:02:57.7]} 3. Nc3 {[%clk 0:03:01.4]} 3... Bb4 {[%clk 0:02:57.8]}
4. Qc2 {[%clk 0:03:01.2]} 4... O-O {[%clk 0:02:56.7]} 5. Nf3 {[%clk 0:03:01.2]}
5... b6 {[%clk 0:02:51.7]} 6. e4 {[%clk 0:03:00.2]} 6... Bxc3+ {[%clk
0:02:51.4]} 7. bxc3 {[%clk 0:02:59.7]} 7... Bb7 {[%clk 0:02:51.3]} 8. Bd3 {[%clk
0:02:59.6]} 8... d6 {[%clk 0:02:50.6]} 9. Bg5 {[%clk 0:02:53.8]} 9... h6 {[%clk
0:02:43.4]} 10. Bh4 {[%clk 0:02:53.5]} 10... e5 {[%clk 0:02:22.5]} 11. O-O
{[%clk 0:02:27.9]} 11... Nbd7 {[%clk 0:02:20.3]} 12. a4 {[%clk 0:02:24.1]} 12...
a5 {[%clk 0:02:19.4]} 13. h3 {[%clk 0:02:14.6]} 13... Qe8 {[%clk 0:02:15.4]} 14.
Nd2 {[%clk 0:02:13.9]} 14... g5 {[%clk 0:02:11.1]} 15. Bg3 {[%clk 0:02:12.4]}
15... Nh5 {[%clk 0:02:10.9]} 16. Qd1 {[%clk 0:02:05.3]} 16... Nf4 {[%clk
0:02:08.6]} 17. Bxf4 {[%clk 0:02:03.5]} 17... gxf4 {[%clk 0:02:08.3]} 18. g3
{[%clk 0:01:55.2]} 18... Kh7 {[%clk 0:02:05.3]} 19. gxf4 {[%clk 0:01:52.5]}
19... Rg8+ {[%clk 0:02:05]} 20. Kh2 {[%clk 0:01:51.1]} 20... f5 {[%clk
0:01:58.6]} 21. fxe5 {[%clk 0:01:45.9]} 21... dxe5 {[%clk 0:01:56.7]} 22. f4
{[%clk 0:01:07.3]} 22... exd4 {[%clk 0:01:51.4]} 23. cxd4 {[%clk 0:00:52.8]}
23... Nf6 {[%clk 0:01:48.8]} 24. d5 {[%clk 0:00:49.6]} 24... fxe4 {[%clk
0:01:46.7]} 25. Nxe4 {[%clk 0:00:45.6]} 25... Nxe4 {[%clk 0:01:43.3]} 26. Qc2
{[%clk 0:00:45.5]} 26... Kh8 {[%clk 0:01:21.4]} 27. Bxe4 {[%clk 0:00:45.2]}
27... Qh5 {[%clk 0:01:15.1]} 28. Rg1 {[%clk 0:00:35.4]} 28... Qf7 {[%clk
0:00:57.1]} 29. Qc3+ {[%clk 0:00:27.1]} 29... Rg7 {[%clk 0:00:56]} 30. Rg3
{[%clk 0:00:23.2]} 30... Rg8 {[%clk 0:00:50.7]} 31. Rag1 {[%clk 0:00:22.8]}
31... Qxf4 {[%clk 0:00:50.4]} 32. Qd4 {[%clk 0:00:17.3]} 32... Bc8 {[%clk
0:00:47.8]} 33. Kh1 {[%clk 0:00:16]} 33... Qf7 {[%clk 0:00:21.3]} 34. Rg6 {[%clk
0:00:15.3]} 1-0

[Event "*** SCC Grand Prix: Titled Tuesday Blitz"]
[Site "Chess.com"]
[Date "2020.07.14"]
[Round "6"]
[White "Azatic"]
[Black "rasmussvane"]
[Result "0-1"]
[WhiteElo "2640"]
[BlackElo "2894"]
[TimeControl "180+1"]
[EndTime "11:07:24 PDT"]
[Termination "rasmussvane won by resignation"]

1. e4 {[%clk 0:03:00.7]} 1... c6 {[%clk 0:02:59.5]} 2. d4 {[%clk 0:03:00.3]}
2... d5 {[%clk 0:03:00.4]} 3. e5 {[%clk 0:03:00.7]} 3... Bf5 {[%clk 0:03:00.3]}
4. Nf3 {[%clk 0:03:01]} 4... e6 {[%clk 0:03:00]} 5. Be2 {[%clk 0:03:01.1]} 5...
Ne7 {[%clk 0:03:00.7]} 6. O-O {[%clk 0:03:00.9]} 6... Ng6 {[%clk 0:03:01.3]} 7.
b3 {[%clk 0:03:00.4]} 7... f6 {[%clk 0:02:59.7]} 8. c4 {[%clk 0:02:57.4]} 8...
Be7 {[%clk 0:02:54.9]} 9. Nc3 {[%clk 0:02:55.3]} 9... O-O {[%clk 0:02:54.4]} 10.
cxd5 {[%clk 0:02:43.8]} 10... exd5 {[%clk 0:02:45.3]} 11. Bd3 {[%clk 0:02:37]}
11... Bg4 {[%clk 0:02:42.3]} 12. Bxg6 {[%clk 0:01:51.2]} 12... hxg6 {[%clk
0:02:42]} 13. Qd3 {[%clk 0:01:51.4]} 13... Bxf3 {[%clk 0:02:39.8]} 14. gxf3
{[%clk 0:01:52.3]} 14... fxe5 {[%clk 0:02:38.2]} 15. dxe5 {[%clk 0:01:53.2]}
15... Nd7 {[%clk 0:02:09.3]} 16. f4 {[%clk 0:01:47.6]} 16... g5 {[%clk
0:02:09.6]} 17. Qg3 {[%clk 0:01:27.1]} 17... gxf4 {[%clk 0:02:02.4]} 18. Bxf4
{[%clk 0:01:28]} 18... Nc5 {[%clk 0:02:02.8]} 19. Qg4 {[%clk 0:00:59.3]} 19...
Qc8 {[%clk 0:01:56.4]} 20. Qxc8 {[%clk 0:00:56.6]} 20... Raxc8 {[%clk
0:01:57.3]} 21. Bg3 {[%clk 0:00:57.2]} 21... Rf5 {[%clk 0:01:50.6]} 22. Rad1
{[%clk 0:00:48.8]} 22... Ne6 {[%clk 0:01:41.5]} 23. Ne2 {[%clk 0:00:44.6]} 23...
Bc5 {[%clk 0:01:37.2]} 24. Kg2 {[%clk 0:00:44.4]} 24... Rcf8 {[%clk 0:01:36.5]}
25. f4 {[%clk 0:00:41.9]} 25... Be3 {[%clk 0:01:35.4]} 26. Rd3 {[%clk 0:00:35]}
26... Bxf4 {[%clk 0:01:35.4]} 27. Rdf3 {[%clk 0:00:29.5]} 27... g5 {[%clk
0:01:31.8]} 28. h4 {[%clk 0:00:24]} 28... Rxe5 {[%clk 0:01:27.6]} 29. Nxf4
{[%clk 0:00:21.6]} 29... gxf4 {[%clk 0:01:27.6]} 30. Bxf4 {[%clk 0:00:20.2]}
30... Re2+ {[%clk 0:01:17.4]} 31. Kg3 {[%clk 0:00:16]} 31... Nxf4 {[%clk
0:01:13.2]} 32. Rxf4 {[%clk 0:00:16.9]} 32... Rxf4 {[%clk 0:01:13.6]} 33. Kxf4
{[%clk 0:00:17.8]} 33... Rxa2 {[%clk 0:01:11.9]} 34. Ke5 {[%clk 0:00:18.3]}
34... Ra5 {[%clk 0:00:42.8]} 35. Kd6 {[%clk 0:00:16.7]} 35... Rb5 {[%clk
0:00:41.6]} 36. Rf3 {[%clk 0:00:17.2]} 36... Kg7 {[%clk 0:00:39]} 37. Rg3+
{[%clk 0:00:10.6]} 37... Kh6 {[%clk 0:00:37.8]} 38. Rh3 {[%clk 0:00:10.5]} 38...
Kh5 {[%clk 0:00:37.1]} 39. Kc7 {[%clk 0:00:11.1]} 39... a6 {[%clk 0:00:34.9]}
40. Kd6 {[%clk 0:00:11.5]} 40... Rb4 {[%clk 0:00:28.1]} 41. Kc7 {[%clk
0:00:11.3]} 41... Rxh4 {[%clk 0:00:20.1]} 42. Rg3 {[%clk 0:00:09.8]} 42... Rb4
{[%clk 0:00:19.7]} 43. Rg8 {[%clk 0:00:10.2]} 43... Rb5 {[%clk 0:00:18.4]} 44.
Rg3 {[%clk 0:00:08.2]} 44... Kh4 {[%clk 0:00:18.2]} 45. Rg7 {[%clk 0:00:08.4]}
45... Rxb3 {[%clk 0:00:17.5]} 0-1

[Event "*** SCC Grand Prix: Titled Tuesday Blitz"]
[Site "Chess.com"]
[Date "2020.07.14"]
[Round "6"]
[White "DishonorOnYourCow"]
[Black "brunoo2003"]
[Result "0-1"]
[WhiteElo "2332"]
[BlackElo "2251"]
[TimeControl "180+1"]
[EndTime "11:07:24 PDT"]
[Termination "brunoo2003 won on time"]

1. d4 {[%clk 0:03:00.9]} 1... Nf6 {[%clk 0:02:53]} 2. c4 {[%clk 0:03:01.2]} 2...
g6 {[%clk 0:02:53.1]} 3. Nc3 {[%clk 0:03:00.3]} 3... Bg7 {[%clk 0:02:53.4]} 4.
e4 {[%clk 0:02:59.9]} 4... O-O {[%clk 0:02:54.3]} 5. f4 {[%clk 0:02:59.8]} 5...
c5 {[%clk 0:02:49.5]} 6. d5 {[%clk 0:02:59.2]} 6... d6 {[%clk 0:02:48.9]} 7. Nf3
{[%clk 0:02:59.2]} 7... e6 {[%clk 0:02:48.1]} 8. dxe6 {[%clk 0:03:00.1]} 8...
fxe6 {[%clk 0:02:45.9]} 9. Bd3 {[%clk 0:03:01]} 9... Nc6 {[%clk 0:02:43.6]} 10.
O-O {[%clk 0:03:01.3]} 10... e5 {[%clk 0:02:43.3]} 11. fxe5 {[%clk 0:02:51.9]}
11... dxe5 {[%clk 0:02:39.4]} 12. Bg5 {[%clk 0:02:50]} 12... h6 {[%clk
0:02:12.5]} 13. Bh4 {[%clk 0:02:45.2]} 13... g5 {[%clk 0:02:08.7]} 14. Bf2
{[%clk 0:02:44.9]} 14... b6 {[%clk 0:02:05.9]} 15. Nd5 {[%clk 0:02:44]} 15...
Kh8 {[%clk 0:01:51.4]} 16. Bg3 {[%clk 0:02:41.7]} 16... Bg4 {[%clk 0:01:47.8]}
17. Qd2 {[%clk 0:02:33.4]} 17... Bxf3 {[%clk 0:01:47.6]} 18. Rxf3 {[%clk
0:02:34.3]} 18... Nd4 {[%clk 0:01:41.4]} 19. Rff1 {[%clk 0:02:33.7]} 19... Nh5
{[%clk 0:01:38.1]} 20. Bf2 {[%clk 0:02:29]} 20... Qd6 {[%clk 0:01:34.8]} 21. Qe3
{[%clk 0:02:10.3]} 21... Kh7 {[%clk 0:01:27.2]} 22. Be2 {[%clk 0:01:51.4]} 22...
Nf4 {[%clk 0:01:26.7]} 23. Bg4 {[%clk 0:01:50.3]} 23... h5 {[%clk 0:01:21.9]}
24. Bf5+ {[%clk 0:01:37.9]} 24... Nxf5 {[%clk 0:01:19.5]} 25. exf5 {[%clk
0:01:38.8]} 25... Nxd5 {[%clk 0:01:17.5]} 26. cxd5 {[%clk 0:01:38]} 26... Rxf5
{[%clk 0:01:17.1]} 27. Qe4 {[%clk 0:01:26]} 27... Qg6 {[%clk 0:01:16.3]} 28. d6
{[%clk 0:01:24.5]} 28... Raf8 {[%clk 0:01:08.8]} 29. Rad1 {[%clk 0:01:16.3]}
29... Rd8 {[%clk 0:01:07.5]} 30. d7 {[%clk 0:01:14.3]} 30... Rf7 {[%clk
0:01:03.8]} 31. Qb7 {[%clk 0:01:11.8]} 31... Qe6 {[%clk 0:01:00.8]} 32. Qxa7
{[%clk 0:01:06.8]} 32... Rfxd7 {[%clk 0:00:52.8]} 33. Rxd7 {[%clk 0:01:05.6]}
33... Rxd7 {[%clk 0:00:53.7]} 34. Qa8 {[%clk 0:01:05.6]} 34... e4 {[%clk
0:00:46.7]} 35. Re1 {[%clk 0:01:03.5]} 35... Kg6 {[%clk 0:00:38.2]} 36. h4
{[%clk 0:00:59]} 36... Bxb2 {[%clk 0:00:30.5]} 37. hxg5 {[%clk 0:00:53.3]} 37...
Kxg5 {[%clk 0:00:25.4]} 38. Qb8 {[%clk 0:00:35.6]} 38... Be5 {[%clk 0:00:22.5]}
39. Qf8 {[%clk 0:00:31.8]} 39... Bd4 {[%clk 0:00:20.9]} 40. Rf1 {[%clk 0:00:18]}
40... e3 {[%clk 0:00:19.1]} 41. Bh4+ {[%clk 0:00:07.9]} 41... Kxh4 {[%clk
0:00:19.4]} 42. Qf4+ {[%clk 0:00:02.8]} 42... Qg4 {[%clk 0:00:18.6]} 43. Qh2+
{[%clk 0:00:01.8]} 43... Kg5 {[%clk 0:00:17.4]} 0-1

[Event "*** SCC Grand Prix: Titled Tuesday Blitz"]
[Site "Chess.com"]
[Date "2020.07.14"]
[Round "6"]
[White "Josip_buje"]
[Black "Zhani-Z"]
[Result "1-0"]
[WhiteElo "2297"]
[BlackElo "2409"]
[TimeControl "180+1"]
[EndTime "11:07:27 PDT"]
[Termination "Josip_buje won by checkmate"]

1. d4 {[%clk 0:03:00.9]} 1... Nf6 {[%clk 0:02:59.2]} 2. Nf3 {[%clk 0:03:01]}
2... d5 {[%clk 0:02:58.4]} 3. c4 {[%clk 0:03:00.1]} 3... e6 {[%clk 0:02:57.4]}
4. Nc3 {[%clk 0:03:00.5]} 4... Bb4 {[%clk 0:02:55.9]} 5. Bg5 {[%clk 0:03:00.5]}
5... h6 {[%clk 0:02:18.6]} 6. Bxf6 {[%clk 0:02:59.3]} 6... Qxf6 {[%clk
0:02:18.8]} 7. e3 {[%clk 0:02:59.8]} 7... Nc6 {[%clk 0:02:16]} 8. Bd3 {[%clk
0:02:59.6]} 8... dxc4 {[%clk 0:02:15.3]} 9. Bxc4 {[%clk 0:02:59.3]} 9... Bd7
{[%clk 0:02:02.7]} 10. O-O {[%clk 0:02:58.5]} 10... O-O {[%clk 0:02:01.1]} 11.
Ne4 {[%clk 0:02:56.2]} 11... Qe7 {[%clk 0:02:00.1]} 12. a3 {[%clk 0:02:53.9]}
12... Bd6 {[%clk 0:01:59.5]} 13. Rc1 {[%clk 0:02:53.5]} 13... Rac8 {[%clk
0:01:54.6]} 14. b4 {[%clk 0:02:50.2]} 14... Rfd8 {[%clk 0:01:50.1]} 15. Bd3
{[%clk 0:02:44.5]} 15... e5 {[%clk 0:01:46.2]} 16. Nxd6 {[%clk 0:02:36.7]} 16...
cxd6 {[%clk 0:01:45.6]} 17. d5 {[%clk 0:02:21.8]} 17... Nb8 {[%clk 0:01:45.3]}
18. e4 {[%clk 0:02:21.5]} 18... Bg4 {[%clk 0:01:44.3]} 19. Be2 {[%clk
0:02:20.8]} 19... Nd7 {[%clk 0:01:36.7]} 20. Qa4 {[%clk 0:02:19.4]} 20... a6
{[%clk 0:01:32.8]} 21. h3 {[%clk 0:02:17.2]} 21... Bh5 {[%clk 0:01:28.8]} 22.
Qb3 {[%clk 0:02:11.6]} 22... Nf6 {[%clk 0:01:26]} 23. Qe3 {[%clk 0:02:11.1]}
23... Qd7 {[%clk 0:01:12.9]} 24. Nh4 {[%clk 0:01:51.9]} 24... Bg6 {[%clk
0:01:00.3]} 25. Nxg6 {[%clk 0:01:49.4]} 25... fxg6 {[%clk 0:01:01.2]} 26. Bf3
{[%clk 0:01:36.7]} 26... Qa4 {[%clk 0:00:53.8]} 27. h4 {[%clk 0:01:25.9]} 27...
Qd7 {[%clk 0:00:43.2]} 28. Qb6 {[%clk 0:01:21.7]} 28... Kh7 {[%clk 0:00:41.5]}
29. g3 {[%clk 0:01:20.6]} 29... g5 {[%clk 0:00:40.2]} 30. hxg5 {[%clk
0:01:19.5]} 30... hxg5 {[%clk 0:00:41.1]} 31. Qe3 {[%clk 0:01:16.1]} 31... Kg6
{[%clk 0:00:38.1]} 32. Kg2 {[%clk 0:01:06.4]} 32... Rh8 {[%clk 0:00:36.4]} 33.
Rh1 {[%clk 0:00:51.9]} 33... Rxh1 {[%clk 0:00:28.7]} 34. Rxh1 {[%clk 0:00:50.1]}
34... Rc2 {[%clk 0:00:22.6]} 35. Qd3 {[%clk 0:00:37.8]} 35... Qc7 {[%clk
0:00:13.8]} 36. Qd1 {[%clk 0:00:33]} 36... Kf7 {[%clk 0:00:10.5]} 37. Bh5+
{[%clk 0:00:31.3]} 37... Ke7 {[%clk 0:00:10.7]} 38. Qf3 {[%clk 0:00:30.3]} 38...
Qc4 {[%clk 0:00:09.9]} 39. Re1 {[%clk 0:00:26.4]} 39... Rc3 {[%clk 0:00:10.1]}
40. Qf5 {[%clk 0:00:23]} 40... Rc2 {[%clk 0:00:04.4]} 41. Qe6+ {[%clk
0:00:21.8]} 41... Kf8 {[%clk 0:00:04.2]} 42. Qf7# {[%clk 0:00:21]} 1-0